bitfinex-derivatives/quotes_ETHF0:USTF0_20241023
["timestamp","ask_amount","ask_price","bid_price","bid_amount"]
[1729697272212,3.78,2544.2,2543.9,45.12455]
[1729697272414,0.39332,2544.1,2543.9,0.39335]
[1729697272617,0.39335,2543.9,2543.8,3.2078]
[1729697272817,3.78,2544.0,2543.6,1.8982]
[1729697272818,0.39338,2543.7,2543.6,1.8982]
[1729697273022,3.78,2543.7,2543.6,43.09159]
[1729697273223,4.12681016,2543.9,2543.6,42.6982]
[1729697273418,6.9878,2544.2,2543.6,42.6982]
[1729697273618,0.39332,2544.1,2543.9,0.39334]
[1729697273827,7.38111,2544.2,2544.0,0.39333]
[1729697274029,0.39333,2544.1,2543.9,0.39334]
[1729697274227,7.38111,2544.2,2544.0,0.39333]
[1729697274430,0.39332,2544.1,2543.9,0.39334]
[1729697274626,7.38111,2544.2,2543.9,0.39334]
[1729697274929,7.38111,2544.2,2543.6,42.6982]
[1729697275139,7.38111,2544.2,2544.0,0.39333]
[1729697275722,6.9878,2544.2,2544.0,0.39333]
[1729697276026,6.9878,2544.2,2543.6,42.6982]
[1729697276223,0.39332,2544.1,2544.0,0.39333]
[1729697276526,7.38111,2544.2,2544.0,0.39333]
[1729697276727,0.39332,2544.1,2544.0,0.39333]
[1729697276927,7.38111,2544.2,2544.0,0.39333]
[1729697277127,0.39332,2544.1,2543.9,0.39333]
[1729697277323,0.39332,2544.1,2543.8,0.39336]
[1729697277324,3.78,2543.9,2543.8,0.39336]
[1729697277827,3.78,2543.9,2543.8,4.32456]
[1729697278225,6.9878,2544.2,2544.1,0.39332]
[1729697279128,7.3811,2544.2,2544.1,0.39332]
[1729697279933,0.39335,2543.9,2543.8,0.39336]
[1729697280124,0.39335,2543.9,2543.6,42.6982]
[1729697280125,6.9878,2543.9,2543.6,42.6982]
[1729697280526,4.35861667,2543.8,2543.4,1.9668]
[1729697280733,4.35861667,2543.8,2543.4,2.36022]
[1729697280734,3.78,2543.5,2543.4,2.36022]
[1729697280928,3.78,2543.5,2543.4,43.16022]
[1729697281128,4.17337,2543.8,2543.7,0.39337]
[1729697281634,0.39338,2543.7,2543.6,0.39339]
[1729697281934,3.78,2543.8,2543.4,43.16021]
[1729697281935,0.39341,2543.5,2543.4,43.16021]
[1729697282130,0.39341,2543.6,2543.5,0.39341]
[1729697282329,0.39341,2543.5,2543.4,40.8]
[1729697282635,0.39344,2543.4,2543.3,0.39344]
[1729697283024,0.39345,2543.3,2543.2,0.39344]
[1729697283233,3.2078,2543.3,2543.1,42.792]
[1729697283429,3.2078,2543.3,2543.1,2.38546]
[1729697283430,0.39346,2543.2,2543.1,2.38546]
[1729697284823,0.39347,2543.1,2543.0,41.19349]
[1729697285024,3.78,2543.2,2542.8,0.39351]
[1729697285025,0.39351,2542.9,2542.8,0.39351]
[1729697285225,0.39351,2542.9,2542.6,2.0332]
[1729697285226,3.78,2542.7,2542.6,2.42675]
[1729697285421,3.18926252,2542.7,2542.6,6.35955]
[1729697285624,3.18926252,2542.7,2542.6,47.15955]
[1729697285827,3.18926252,2542.7,2542.6,43.22675]
[1729697286131,3.18926252,2542.7,2542.6,2.42675]
[1729697286429,3.18926252,2542.7,2542.2,3.2078]
[1729697286430,7.33661415,2542.7,2542.2,3.2078]
[1729697286634,3.78,2542.5,2542.4,0.39357]
[1729697286831,4.17356,2542.5,2542.4,0.39357]
[1729697287028,3.78,2542.5,2542.4,0.39357]
[1729697287243,3.2078,2542.8,2542.7,0.39353]
[1729697289042,3.2078,2543.1,2543.0,0.39349]
[1729697289336,4.33066956,2542.9,2542.6,3.9908]
[1729697289635,3.60133,2542.7,2542.2,0.98403]
[1729697289842,3.2078,2542.7,2542.2,0.98403]
[1729697290032,6.9878,2542.7,2542.2,41.78403]
[1729697290235,6.9878,2542.7,2542.2,40.8]
[1729697290439,4.17357,2542.5,2542.4,0.39357]
[1729697290738,3.78,2542.5,2542.4,0.39357]
[1729697291141,4.17356,2542.5,2542.4,0.39357]
[1729697291336,4.17356,2542.5,2540.6,0.3936]
[1729697291337,7.7136,2542.5,2541.7,3.2078]
[1729697291531,6.9878,2541.8,2541.1,3.8321]
[1729697291735,6.9878,2541.8,2541.7,0.39369]
[1729697292137,7.57945617,2541.8,2541.7,0.39369]
[1729697292332,3.78,2542.0,2541.9,0.39366]
[1729697292738,3.2078,2542.6,2541.7,3.2078]
[1729697292937,3.78,2542.7,2542.2,0.98403]
[1729697293132,3.78,2542.7,2542.6,0.39355]
[1729697293747,4.17353,2542.7,2542.6,0.39355]
[1729697294040,8.15057493,2542.7,2542.6,0.39355]
[1729697294239,8.54410493,2542.7,2542.6,0.39355]
[1729697295132,0.39355,2542.6,2542.5,2.34056]
[1729697295334,0.39355,2542.6,2542.4,0.39358]
[1729697295335,0.39356,2542.5,2542.4,0.39358]
[1729697295737,4.2555649,2542.5,2542.4,0.39358]
[1729697295933,0.39353,2542.7,2542.6,0.39353]
[1729697296139,3.60133,2542.8,2542.2,0.98401]
[1729697296340,3.60133,2542.8,2542.1,4.19185]
[1729697296341,4.2555649,2542.7,2542.1,4.19185]
[1729697296643,8.0355649,2542.7,2542.1,3.2078]
[1729697296848,0.39356,2542.6,2542.5,0.39356]
[1729697297047,3.9328,2542.6,2542.1,3.2078]
[1729697297344,0.39359,2542.4,2542.3,0.39359]
[1729697297547,4.35479049,2542.6,2542.1,3.2078]
[1729697297548,0.39361,2542.3,2542.1,3.2078]
[1729697297756,0.39361,2542.3,2542.2,0.39361]
[1729697298149,4.90178523,2542.3,2542.2,0.39361]
[1729697298352,0.39362,2542.2,2542.1,0.39362]
[1729697298548,0.39362,2542.2,2541.8,7.1526]
[1729697298549,3.9336,2542.2,2541.8,7.1526]
[1729697298748,4.90716821,2542.2,2542.1,0.39363]
[1729697298954,4.90716821,2542.2,2541.8,7.1526]
[1729697298955,0.39363,2542.1,2542.0,0.39364]
[1729697299160,0.39363,2542.1,2541.9,0.39366]
[1729697299358,0.39363,2542.1,2541.8,7.1526]
[1729697299359,4.51354821,2542.1,2542.0,0.39364]
[1729697299556,5.2558,2542.7,2542.0,0.39364]
[1729697299754,6.9878,2542.7,2542.1,3.2078]
[1729697299958,0.39357,2542.5,2542.4,0.39357]
[1729697300155,4.81883228,2542.6,2542.5,0.39356]
[1729697300357,6.9878,2542.7,2542.4,0.39358]
[1729697300358,4.42527228,2542.5,2542.4,0.39358]
[1729697300561,1.96654,2544.2,2542.4,0.39358]
[1729697300562,6.9878,2543.5,2543.1,0.39347]
[1729697300765,0.39343,2543.4,2543.3,0.39343]
[1729697300963,0.39343,2543.4,2543.2,0.39345]
[1729697300964,0.39345,2543.3,2543.2,0.39345]
[1729697301451,0.39345,2543.3,2542.9,40.8]
[1729697301452,4.46801814,2543.4,2543.3,0.39344]
[1729697301862,4.86144814,2543.4,2543.3,0.39344]
[1729697302062,0.39345,2543.3,2543.2,0.39345]
[1729697302363,4.46841903,2543.3,2542.9,40.8]
[1729697302659,4.46841903,2543.3,2543.2,0.39346]
[1729697302958,3.78,2543.4,2543.2,0.39346]
[1729697303157,3.78,2543.4,2542.9,41.78375]
[1729697303158,4.17343,2543.4,2543.3,0.39344]
[1729697303350,4.64651312,2543.3,2543.2,0.39345]
[1729697303556,0.39345,2543.3,2543.2,0.39345]
[1729697303761,8.25050222,2543.3,2543.2,0.39345]
[1729697303963,8.64394222,2543.3,2543.2,0.39345]
[1729697304355,0.39346,2543.2,2542.9,40.8]
[1729697304660,4.54504904,2543.1,2542.6,8.17587]
[1729697304868,4.54504904,2543.1,2542.6,7.192]
[1729697305160,0.39351,2542.9,2542.8,0.3935]
[1729697305365,4.54504904,2543.1,2542.7,40.8]
[1729697305567,0.39352,2542.8,2542.7,0.39353]
[1729697305763,4.76374,2543.0,2542.3,3.2078]
[1729697306064,0.39355,2542.6,2542.5,0.39355]
[1729697306260,0.39354,2542.7,2542.6,0.39353]
[1729697306658,4.52587285,2542.7,2542.6,0.39353]
[1729697306857,3.2078,2542.9,2542.8,0.39352]
[1729697307160,3.60131,2542.9,2542.8,0.39352]
[1729697307565,3.60131,2542.9,2542.7,0.39353]
[1729697307566,0.39353,2542.8,2542.7,0.39353]
[1729697307766,11.22430597,2542.9,2542.3,44.0078]
[1729697307964,0.3936,2542.3,2542.1,4.45482]
[1729697308266,3.2078,2542.6,2542.1,4.0612]
[1729697308467,0.3936,2542.3,2542.2,0.3936]
[1729697308860,0.39361,2542.2,2541.9,44.0078]
[1729697309164,3.78,2542.4,2541.9,44.0078]
[1729697309467,4.51483904,2542.2,2542.1,0.39361]
[1729697309868,3.78,2542.4,2541.9,44.0078]
[1729697310070,4.12121904,2542.2,2541.9,3.2078]
[1729697310271,4.51482904,2542.3,2542.2,0.39361]
[1729697310472,3.2078,2542.6,2542.0,40.8]
[1729697310768,3.60136,2542.6,2542.2,0.98402]
[1729697310962,0.39358,2542.5,2542.4,0.39357]
[1729697311157,4.21581666,2542.5,2542.4,0.39357]
[1729697311466,8.14941666,2542.5,2541.9,1.02731597]
[1729697311773,0.98415,2541.9,2541.3,1.02731597]
[1729697311968,0.39372,2541.5,2541.4,41.19372]
[1729697312468,0.39371,2541.6,2541.5,0.3937]
[1729697312862,4.56223711,2541.6,2541.5,0.3937]
[1729697313064,4.56223711,2541.6,2541.3,40.8]
[1729697313065,3.78,2541.7,2541.3,40.8]
[1729697313266,3.78,2541.4,2541.2,1.02731597]
[1729697313473,3.78,2541.4,2541.0,1.02731597]
[1729697313768,3.78,2541.1,2541.0,0.39379]
[1729697314170,11.84040726,2541.1,2541.0,0.3938]
[1729697314465,0.3938,2541.0,2540.9,3.60161]
[1729697314659,0.3938,2541.0,2540.9,3.2078]
[1729697314863,4.60065492,2541.0,2540.9,3.60161]
[1729697315264,8.14205492,2541.0,2540.7,1.02731597]
[1729697315463,8.14205492,2541.0,2540.8,0.39383]
[1729697315464,4.17382,2540.9,2540.8,0.39383]
[1729697315669,4.20685492,2541.0,2540.9,0.39381]
[1729697315868,0.3938,2541.0,2540.9,0.39381]
[1729697316070,4.87838771,2541.0,2540.9,0.39381]
[1729697316271,0.39382,2540.9,2540.8,0.39382]
[1729697316467,3.78,2540.9,2540.8,0.39383]
[1729697316669,8.14159609,2540.9,2540.8,0.39383]
[1729697317382,4.36159609,2540.9,2540.8,4.32983]
[1729697317676,3.2078,2541.3,2541.2,0.39377]
[1729697317868,3.2078,2541.3,2540.8,3.2078]
[1729697318071,3.60156,2541.3,2541.2,0.39377]
[1729697318276,3.2078,2541.3,2540.8,3.2078]
[1729697318469,4.17378,2541.1,2541.0,0.39378]
[1729697318778,3.78,2541.1,2541.0,0.39378]
[1729697318976,8.29780336,2541.1,2541.0,0.39378]
[1729697319166,8.69158336,2541.1,2541.0,0.39378]
[1729697319370,8.29780336,2541.1,2541.0,0.39378]
[1729697319683,4.51780336,2541.1,2541.0,4.32898]
[1729697319977,0.39376,2541.3,2541.2,0.39375]
[1729697320275,3.78,2541.4,2541.3,0.39375]
[1729697321371,3.2078,2541.7,2541.3,0.39375]
[1729697321372,3.78,2541.6,2541.3,0.39375]
[1729697321669,3.2078,2541.7,2541.3,0.39375]
[1729697321670,3.78,2541.9,2541.8,0.39367]
[1729697321871,3.78,2541.9,2541.4,3.2078]
[1729697322070,3.78,2541.6,2541.5,0.39372]
[1729697322871,3.78,2541.6,2541.1,8.12745]
[1729697323078,3.78,2541.2,2541.1,4.32898]
[1729697323476,3.78,2541.2,2540.6,0.98464]
[1729697323477,0.39378,2541.1,2540.6,0.98464]
[1729697323683,0.3938,2541.0,2540.6,2.0904]
[1729697323973,7.98795404,2540.9,2540.8,0.39383]
[1729697324173,4.20795404,2540.9,2540.8,44.40163]
[1729697324377,4.20795404,2541.3,2541.2,0.39377]
[1729697324573,4.17371,2541.6,2541.1,3.2078]
[1729697324876,4.28232398,2541.5,2541.4,0.39373]
[1729697325178,2.1079,2541.8,2541.7,0.39369]
[1729697325179,3.78,2541.8,2541.7,0.39369]
[1729697325478,4.17367,2541.8,2541.7,0.39369]
[1729697325671,3.78,2541.8,2541.7,0.39369]
[1729697325876,0.39371,2541.6,2541.5,0.39371]
[1729697326173,5.1548,2542.3,2541.5,0.39371]
[1729697326174,3.78,2542.1,2541.5,0.98431]
[1729697326378,3.78,2542.1,2541.9,0.39365]
[1729697326379,0.39365,2542.0,2541.9,0.39365]
[1729697326676,0.39367,2541.9,2541.8,0.39367]
[1729697326880,0.3937,2541.7,2541.6,0.39369]
[1729697327180,8.08118149,2541.9,2541.4,4.19213]
[1729697327381,4.30118149,2541.7,2541.6,0.3937]
[1729697327676,4.17366,2541.9,2541.7,0.39369]
[1729697327677,4.30246899,2541.8,2541.7,0.39369]
[1729697327877,3.78,2541.9,2541.8,0.39367]
[1729697328275,4.30246899,2541.9,2541.8,0.39367]
[1729697328578,3.2078,2542.0,2541.9,0.39366]
[1729697332873,7.1414,2542.0,2541.4,3.2078]
[1729697333073,8.07925582,2542.0,2541.9,0.39366]
[1729697333272,8.07925582,2542.0,2540.7,0.98458]
[1729697333273,9.64650582,2542.0,2540.7,0.98458]
[1729697333583,9.64650582,2542.0,2540.6,4.0718]
[1729697333584,7.97215,2541.4,2540.6,4.0718]
[1729697333882,6.4396624,2541.3,2540.6,4.0718]
[1729697334180,4.2974624,2541.3,2541.2,0.39377]
[1729697334982,3.78,2541.6,2541.5,0.39372]
[1729697335172,0.3937,2541.7,2541.6,0.3937]
[1729697335481,0.39372,2541.5,2541.4,0.39373]
[1729697335683,2.1039,2541.8,2541.3,3.8775]
[1729697335878,3.78,2541.9,2541.4,0.98434]
[1729697336071,0.39367,2541.8,2541.7,0.39367]
[1729697336381,0.3937,2541.7,2541.6,0.3937]
[1729697337578,4.31118469,2541.8,2541.3,3.8775]
[1729697337882,0.39372,2541.6,2541.5,0.39371]
[1729697338285,0.39372,2541.6,2541.3,3.8775]
[1729697338286,4.33480804,2541.6,2541.3,3.8775]
[1729697338780,0.39375,2541.4,2541.3,0.39374]
[1729697338982,2.0177,2541.5,2540.9,5.14903]
[1729697339178,3.78,2541.3,2540.9,5.14903]
[1729697339482,4.17376,2541.3,2541.2,0.39377]
[1729697340175,3.78,2541.3,2540.9,4.1645]
[1729697340373,0.39378,2541.2,2541.1,0.39377]
[1729697341787,8.16335861,2541.3,2540.9,4.1645]
[1729697341982,8.55710861,2541.3,2541.2,0.39377]
[1729697342485,8.16335861,2541.3,2541.2,0.39377]
[1729697342679,3.78,2541.3,2541.2,0.39377]
[1729697342987,4.17375,2541.3,2541.2,0.39377]
[1729697343191,3.78,2541.6,2541.5,0.39372]
[1729697343877,4.1737,2541.6,2541.5,0.39372]
[1729697344482,0.39373,2541.5,2541.4,0.39372]
[1729697345286,3.78,2541.6,2541.5,0.39372]
[1729697345488,7.38142,2542.2,2542.1,0.39363]
[1729697345678,11.81429,2543.3,2541.8,3.2078]
[1729697345679,3.2078,2542.6,2541.8,3.2078]
[1729697345880,4.17356,2542.6,2542.5,0.39356]
[1729697346091,4.20668893,2542.6,2542.5,0.39356]
[1729697346285,3.78,2542.9,2542.4,3.2078]
[1729697346696,4.7519992,2542.8,2542.7,0.39353]
[1729697347281,4.3584792,2542.8,2542.7,0.39353]
[1729697347489,3.78,2542.9,2542.4,4.19173]
[1729697347683,3.78,2542.9,2542.8,0.39352]
[1729697347886,5.8747,2543.2,2542.9,0.39349]
[1729697348077,3.2078,2543.3,2542.6,0.98388]
[1729697348283,3.2078,2543.3,2543.2,0.39346]
[1729697348485,3.2078,2543.3,2542.8,3.2078]
[1729697348792,4.17347,2543.2,2543.0,0.39348]
[1729697348987,3.2078,2543.1,2542.5,3.2078]
[1729697349185,3.78,2542.9,2542.8,0.39352]
[1729697349487,4.52385306,2543.0,2542.9,0.3935]
[1729697349788,6.9878,2543.1,2543.0,0.39349]
[1729697350287,2.0366,2543.6,2542.8,4.19157]
[1729697350288,3.78,2543.4,2542.8,4.19157]
[1729697350480,4.17343,2543.4,2543.3,0.39344]
[1729697350677,3.78,2543.4,2543.3,0.39344]
[1729697350880,8.01532316,2543.4,2543.3,0.39344]
[1729697351082,0.39345,2543.3,2543.1,0.39346]
[1729697351282,8.40875316,2543.4,2543.2,0.39344]
[1729697351485,0.39344,2543.3,2543.1,0.39347]
[1729697351689,8.40875316,2543.4,2543.2,0.39345]
[1729697351889,8.01532316,2543.4,2543.2,0.39345]
[1729697352093,0.39345,2543.3,2543.1,0.39346]
[1729697352590,0.39345,2543.3,2542.9,1.972]
[1729697352788,4.17347,2543.1,2542.9,1.972]
[1729697352988,0.39351,2542.9,2542.7,0.39353]
[1729697353178,3.78,2542.8,2542.7,0.39353]
[1729697353379,0.39354,2542.7,2542.6,0.39354]
[1729697353585,0.39353,2542.7,2542.5,0.39356]
[1729697353898,0.39353,2542.7,2542.3,2.0488]
[1729697353899,7.92714385,2542.8,2542.3,5.2566]
[1729697354091,3.78,2542.5,2542.3,2.0488]
[1729697354282,3.78,2542.5,2542.4,0.39357]
[1729697354480,3.78,2542.5,2542.3,5.9824]
[1729697354684,3.78,2542.5,2542.4,0.39358]
[1729697354879,3.78,2542.5,2542.3,5.9824]
[1729697354880,4.19672017,2542.4,2542.3,0.39359]
[1729697355396,4.19672017,2542.4,2542.0,3.2078]
[1729697355397,0.39359,2542.4,2542.0,3.2078]
[1729697355596,3.78,2542.2,2542.1,0.39363]
[1729697356388,0.39363,2542.1,2542.0,3.60144]
[1729697356790,4.44875526,2542.1,2542.0,3.60144]
[1729697356995,3.78,2542.2,2542.1,0.39363]
[1729697357184,3.60134,2542.7,2542.6,0.39355]
[1729697357386,3.60134,2542.7,2542.1,0.39363]
[1729697357594,4.44875526,2542.6,2542.5,0.39356]
[1729697357798,0.39355,2542.6,2542.5,0.39356]
[1729697358094,3.78,2542.8,2542.3,3.2078]
[1729697358095,4.17352,2542.8,2542.3,3.2078]
[1729697358301,0.39353,2542.7,2542.5,0.39355]
[1729697358592,4.73264632,2542.7,2542.6,0.39355]
[1729697359187,4.33911632,2542.7,2542.0,3.2078]
[1729697359391,4.73265632,2542.7,2542.6,0.39355]
[1729697359688,4.33911632,2542.7,2542.2,0.98403]
[1729697360096,4.73265632,2542.7,2542.6,0.39355]
[1729697360588,0.39355,2542.6,2542.5,0.39355]
[1729697360992,4.33911632,2542.7,2542.3,3.2078]
[1729697361296,0.39358,2542.4,2542.3,0.3936]
[1729697361490,0.39361,2542.3,2542.2,0.39361]
[1729697361686,4.17361,2542.3,2542.2,0.39361]
[1729697361888,8.33433101,2542.3,2542.2,0.39361]
[1729697362090,11.87432101,2542.3,2541.8,44.9458]
[1729697362293,11.87432101,2542.3,2541.7,4.19202]
[1729697362294,3.78,2542.0,2541.7,3.2078]
[1729697362595,4.17367,2541.8,2541.7,3.2078]
[1729697363090,8.4730201,2541.8,2541.7,3.2078]
[1729697363684,8.4730201,2541.8,2541.7,3.60149]
[1729697363685,4.6930201,2541.8,2541.7,3.60149]
[1729697363891,3.78,2542.0,2541.7,3.2078]
[1729697364189,0.39366,2541.9,2541.8,0.39366]
[1729697364393,0.39367,2541.9,2541.8,0.39367]
[1729697364898,0.39367,2541.9,2541.5,1.9953]
[1729697364899,4.17365,2542.0,2541.9,0.39366]
[1729697365294,0.39366,2541.9,2541.8,0.39366]
[1729697365988,0.39368,2541.8,2541.7,0.39368]
[1729697366395,0.39374,2541.4,2541.3,0.39374]
[1729697366596,0.39372,2541.5,2541.4,0.39372]
[1729697367396,7.90360771,2541.8,2541.2,40.8]
[1729697367397,0.3937,2541.7,2541.6,0.39369]
[1729697367597,7.90360771,2541.8,2541.2,40.8]
[1729697367791,0.39373,2541.5,2541.4,0.39372]
[1729697368887,0.39375,2541.4,2541.3,0.39374]
[1729697369087,3.78,2541.6,2541.2,40.8]
[1729697369406,0.39377,2541.2,2541.1,0.39377]
[1729697369595,0.39378,2541.1,2541.0,0.39379]
[1729697369909,4.56368652,2541.2,2541.1,0.39377]
[1729697370385,4.16991652,2541.2,2541.1,0.39377]
[1729697370991,0.39382,2540.9,2540.8,0.39382]
[1729697371192,4.17381,2541.0,2540.9,0.3938]
[1729697371396,3.2078,2541.1,2541.0,0.3938]
[1729697372093,3.60158,2541.1,2541.0,0.3938]
[1729697372996,3.2078,2541.1,2540.7,42.7484]
[1729697373196,0.39383,2540.9,2540.8,0.39382]
[1729697374293,3.78,2541.0,2540.7,1.9484]
[1729697374495,4.17381,2541.0,2540.9,0.39381]
[1729697374698,0.39383,2540.9,2540.8,0.39382]
[1729697375303,3.2078,2541.1,2541.0,0.3938]
[1729697375996,3.2078,2541.1,2541.0,41.1938]
[1729697377292,3.60158,2541.1,2541.0,41.1938]
[1729697378195,3.2078,2541.1,2541.0,41.1938]
[1729697378394,3.2078,2541.1,2540.7,1.9484]
[1729697378599,3.78,2541.0,2540.7,1.9484]
[1729697378795,3.2078,2541.1,2540.7,1.9484]
[1729697378996,3.2078,2541.1,2541.0,0.3938]
[1729697379206,3.78,2541.5,2540.9,3.2078]
[1729697379507,3.78,2544.6,2541.5,0.9843]
[1729697379508,0.39366,2541.9,2541.5,0.9843]
[1729697379802,5.803,2542.0,2541.5,7.2116]
[1729697379992,5.803,2542.0,2541.9,0.39366]
[1729697379993,3.78,2542.0,2541.9,0.39366]
[1729697380395,3.46364,2542.0,2541.9,0.39366]
[1729697381198,3.07,2542.0,2541.9,0.39366]
[1729697381399,3.07,2542.0,2541.9,4.32726]
[1729697382305,3.78,2542.2,2542.1,0.39363]
[1729697383191,2.50611,2542.3,2541.8,4.19196]
[1729697383396,6.28611,2542.3,2542.2,0.39361]
[1729697385398,5.8925,2542.3,2541.8,4.19196]
[1729697385596,0.39362,2542.2,2542.1,0.39362]
[1729697385907,5.8925,2542.3,2542.2,0.39361]
[1729697385908,6.2861,2542.3,2542.2,0.39361]
[1729697386708,5.8925,2542.3,2541.9,40.8]
[1729697386909,3.78,2542.1,2542.0,0.39364]
[1729697387495,4.17363,2542.1,2542.0,0.39364]
[1729697387899,3.78,2542.1,2542.0,0.39364]
[1729697389102,2.5061,2542.3,2541.8,40.8]
[1729697389103,2.1125,2542.3,2541.8,40.8]
[1729697389302,3.78,2542.0,2541.9,0.39366]
[1729697391306,5.8925,2542.3,2542.2,0.39361]
[1729697392105,6.2861,2542.3,2542.2,0.39361]
[1729697392306,5.8925,2542.3,2542.2,0.39361]
[1729697393101,5.8925,2542.3,2541.7,44.0078]
[1729697393300,4.17364,2542.1,2542.0,0.39363]
[1729697393498,3.78,2542.1,2541.7,41.78421]
[1729697393903,4.17364,2542.1,2542.0,0.39363]
[1729697394201,0.39365,2542.0,2541.9,0.39364]
[1729697395309,3.78,2542.1,2541.6,40.8]
[1729697395501,0.39367,2541.9,2541.8,0.39366]
[1729697395700,4.17367,2541.9,2541.8,0.39366]
[1729697396911,3.78,2541.9,2541.8,0.39366]
[1729697397215,3.78,2542.1,2542.0,0.39364]
[1729697397508,2.1125,2542.3,2542.2,0.39361]
[1729697397709,4.17358,2542.4,2542.3,0.3936]
[1729697398012,8.50488489,2542.4,2542.3,0.3936]
[1729697400514,3.2078,2542.6,2542.5,0.39356]
[1729697400705,4.17355,2542.7,2542.6,0.39353]
[1729697400903,0.39356,2542.6,2542.5,0.39355]
[1729697401512,0.39359,2542.4,2542.3,0.39358]
[1729697401709,4.17359,2542.4,2542.3,0.39358]
[1729697401914,0.39361,2542.3,2542.2,0.3936]
[1729697402307,0.39363,2542.2,2542.1,0.39361]
[1729697402508,3.46363,2542.2,2542.1,0.39361]
[1729697402806,12.53384926,2542.2,2541.7,3.2078]
[1729697403010,12.53384926,2542.2,2541.4,0.98434]
[1729697403011,6.14,2541.8,2541.4,3.2078]
[1729697403205,6.14,2541.8,2541.0,2.043]
[1729697403206,3.07,2541.5,2541.0,2.043]
[1729697403416,3.07,2541.5,2541.0,0.3938]
[1729697403417,3.46379,2541.1,2541.0,0.3938]
[1729697403607,3.46378,2541.1,2541.0,0.3938]
[1729697403917,3.07,2541.1,2541.0,0.3938]
[1729697404309,3.07,2541.1,2540.9,2.0828]
[1729697404310,3.78,2541.1,2540.9,0.39381]
[1729697404510,0.39381,2541.0,2540.9,0.39381]
[1729697404711,5.7417,2541.1,2540.6,0.98464]
[1729697404915,0.3938,2541.0,2540.9,0.3938]
[1729697405315,0.39381,2541.0,2540.5,5.2508]
[1729697405521,0.39381,2541.0,2540.9,0.3938]
[1729697406213,2.35548,2541.1,2541.0,0.3938]
[1729697406415,0.39384,2540.8,2540.5,5.2508]
[1729697406715,3.78,2540.9,2540.5,3.2078]
[1729697407112,0.39384,2540.8,2540.7,0.39383]
[1729697407317,3.78,2540.9,2540.5,3.2078]
[1729697407518,3.78,2540.9,2540.2,0.39391]
[1729697407519,0.39391,2540.3,2540.2,0.39391]
[1729697407916,0.39391,2540.3,2540.0,0.2]
[1729697407917,8.28784347,2540.3,2540.0,0.2]
[1729697408220,8.28784347,2540.3,2539.0,2.05077068]
[1729697408221,3.78,2539.6,2539.2,3.6078]
[1729697408409,4.17406,2539.3,2539.2,3.6078]
[1729697408714,4.17406,2539.3,2539.2,0.4]
[1729697408715,7.7184,2539.3,2539.2,0.4]
[1729697408924,4.35104347,2539.5,2539.2,0.4]
[1729697409220,3.78,2540.4,2539.5,0.98508]
[1729697409410,3.2078,2540.2,2539.5,3.2078]
[1729697409720,4.52145161,2540.2,2539.5,3.2078]
[1729697409916,3.2078,2540.6,2539.5,3.2078]
[1729697409917,3.78,2540.1,2539.5,3.2078]
[1729697410223,3.78,2540.1,2539.2,3.36628]
[1729697410224,3.78,2539.7,2539.2,2.3811]
[1729697410418,3.78,2539.7,2539.4,0.39403]
[1729697410614,4.15933215,2539.6,2539.5,0.39403]
[1729697410814,3.78,2539.9,2539.2,2.3811]
[1729697411015,11.36554278,2539.9,2539.6,0.39401]
[1729697411322,7.38177,2539.9,2539.6,0.39401]
[1729697411522,4.37774278,2539.8,2539.7,0.394]
[1729697411815,3.2078,2540.3,2539.4,4.19292]
[1729697412015,3.2078,2540.3,2540.2,0.39392]
[1729697412221,4.32664412,2540.5,2540.4,0.39389]
[1729697412421,8.41672,2540.9,2540.6,0.39386]
[1729697412616,8.41672,2540.9,2540.1,0.98481]
[1729697412617,8.0229,2540.9,2540.1,0.98481]
[1729697412817,8.0229,2540.9,2540.0,4.19267]
[1729697412818,4.32664412,2540.8,2540.7,0.39384]
[1729697413013,4.32664412,2540.8,2540.4,3.2078]
[1729697413213,4.32664412,2540.8,2540.7,0.39384]
[1729697413416,3.2078,2541.0,2540.4,3.2078]
[1729697413624,6.9878,2541.4,2540.8,3.2078]
[1729697414017,0.39384,2540.8,2540.6,0.39385]
[1729697414213,3.78,2540.9,2540.8,0.39383]
[1729697414414,3.78,2540.9,2540.5,2.0987]
[1729697414415,3.78,2541.1,2540.6,40.8]
[1729697414621,3.78,2541.3,2540.7,0.98462]
[1729697414815,3.78,2541.3,2541.2,0.39375]
[1729697415018,0.3937,2541.6,2541.1,3.2078]
[1729697415019,3.78,2541.6,2541.1,3.2078]
[1729697415216,3.78,2541.6,2541.5,0.39372]
[1729697415423,3.78,2541.6,2541.0,3.2078]
[1729697415616,3.78,2541.6,2541.4,0.39373]
[1729697415617,8.47773679,2541.6,2541.4,0.39373]
[1729697415830,8.08402679,2541.6,2541.0,3.2078]
[1729697416029,3.78,2541.3,2541.0,3.2078]
[1729697416324,3.78,2541.3,2541.2,0.0983]
[1729697416520,3.78,2541.3,2541.0,3.2078]
[1729697416521,3.78,2541.3,2540.7,2.0388]
[1729697416721,4.17383,2540.8,2540.6,41.19386]
[1729697417025,4.17383,2540.8,2540.5,2.0987]
[1729697417026,0.39385,2540.7,2540.5,2.0987]
[1729697417325,4.17383,2540.8,2540.6,0.49226]
[1729697417526,0.39384,2540.7,2540.6,0.0984]
[1729697417722,8.35141505,2540.7,2540.1,3.2078]